Cogmind - Beta 12 X6 @@@ ROGUE MODE // 2023.02.08 @ 09:01:01 Player: deadnoob Result: Destroyed by G-47 Trooper with Particle Gun Performance ------------- Evolutions (2) 1000 Regions Visited (7) 1400 Robots Destroyed (96) 480 Value Destroyed (2606) 2606 Prototype IDs (25) 500 Alien Tech Used (0) 0 Bonus (637) 637 TOTAL SCORE: 6623 Bonus ------- High Alert Combat Kills 137 Entered Garrisons 200 Aligned with FarCom 300 Cogmind --------- Core Integrity 0/550 Matter 300/300 Energy 100/100 System Corruption 1% Temperature Cool (9) Movement Treading (320) Ox2 Location -8/Materials Parts ------- > --- POWER (1) -------- Light Deuterium Engine > --- PROPULSION (2) --- Light Treads Light Treads > --- UTILITY (6) ------ Huge Storage Unit Salvage Targeting Computer Salvage Targeting Computer Advanced Targeting Computer Light Armor Plating Hardened Medium Armor Plating > --- WEAPON (2) ------- Particle Gun Enhanced Autogun > --- INVENTORY (25) --- Light Treads Light Treads Improved VTOL Module Improved VTOL Module Improved Heat Sink Small Storage Unit Medium Storage Unit High-capacity Matter Pod (97) Weight Redist. System Improved Signal Interpreter Launcher Guidance Computer Light Armor Plating Light Armor Plating Medium Armor Plating Layered Light Armor Plating System Shield System Shield Long-range Tractor Beam Beam Rifle Assault Rifle Heavy Assault Rifle Rocket Launcher Rocket Launcher Improved Grenade Launcher Improved Grenade Launcher Peak State ------------ > --- POWER ------------ Light Deuterium Engine > --- PROPULSION ------- Improved Titanium Leg Improved Titanium Leg > --- UTILITY ---------- Improved Heat Sink High-capacity Storage Unit Hardened Medium Armor Plating Hardened Medium Armor Plating Layered Light Armor Plating Layered Light Armor Plating > --- WEAPON ----------- Flak Gun Flak Gun > --- INVENTORY -------- Light Ion Engine Nuclear Core Nuclear Core Light Fission Core Improved VTOL Module Improved VTOL Module Small Storage Unit Medium Storage Unit Large Matter Pod Medium Armor Plating Layered Light Armor Plating Layered Light Armor Plating System Shield EM Pulse Cannon Flak Gun Flak Gun Grenade Launcher Grenade Launcher Grenade Launcher [Rating: 42] Favorites ----------- Power Light Deuterium Engine Engine Light Deuterium Engine Power Core Light Nuclear Core Propulsion Improved Titanium Leg Treads Light Treads Leg Improved Titanium Leg Wheel Compact Wheel Flight Unit Improved VTOL Module Utility Salvage Targeting Computer Device Improved Heat Sink Storage Huge Storage Unit Processor Salvage Targeting Computer Protection Layered Light Armor Plating Weapon Enhanced Autogun Energy Gun Particle Gun Energy Cannon EM Pulse Cannon Ballistic Gun Enhanced Autogun Launcher Grenade Launcher Build | -11 -10 -10 -10 -9 -8 -8 -8 ------- Run | Jun Mat Min Exi Min Mat Gar Mat Slots Evolved 4 | . . . . . 4 . . Power . | . . . . . . . . Propulsion . | . . . . . . . . Utility 4 | . . . . . 4 . . Weapon . | . . . . . . . . Parts Attached 88 | 1 7 7 . 1 41 23 8 Power 5 | . . 1 . . 2 1 1 Engine 3 | . . . . . 2 . 1 Core 2 | . . 1 . . . 1 . Reactor . | . . . . . . . . Propulsion 26 | . 2 2 . . 14 6 2 Treads 15 | . 2 1 . . 5 5 2 Leg 8 | . . . . . 8 . . Wheel 1 | . . 1 . . . . . Hover . | . . . . . . . . Flight 2 | . . . . . 1 1 . Utility 26 | . 3 1 . 1 16 2 3 Device 2 | . 1 . . . 1 . . Storage 4 | . 1 . . . 2 . 1 Processor 5 | . . . . . 5 . . Hackware . | . . . . . . . . Protection 15 | . 1 1 . 1 8 2 2 Artifact . | . . . . . . . . Weapon 31 | 1 2 3 . . 9 14 2 Energy Gun 5 | 1 1 1 . . . 1 1 Energy Cannon 4 | . . . . . 2 2 . Ballistic Gun 12 | . . . . . 6 5 1 Ballistic Cannon . | . . . . . . . . Launcher 10 | . 1 2 . . 1 6 . Special Weapon . | . . . . . . . . Impact Weapon . | . . . . . . . . Slashing Weapon . | . . . . . . . . Piercing Weapon . | . . . . . . . . Special Melee Weapon . | . . . . . . . . Unidentified Prototypes 2 | . . . . . 2 . . Parts Lost 26 | . . 7 . . 1 15 3 Power 3 | . . 1 . . . 2 . Propulsion 7 | . . 2 . . . 5 . Utility 7 | . . 2 . . 1 2 2 Weapon 9 | . . 2 . . . 6 1 Highest Loss Streak 7 | . . 7 . . 1 6 3 To Critical Strikes 1 | . . . . . . . 1 Average Slot Usage (%) 94 | . 96 92 57 71 98 93 93 Engine 5 | . 14 . . . 8 1 4 Core 1 | . . 11 . . . 3 . Treads 8 | . . 25 14 14 . 15 18 Leg 10 | . 27 . . . 17 2 . Device 2 | . 1 . . . 6 . . Storage 9 | . 14 14 14 14 9 9 9 Processor 21 | . . . . . 19 36 29 Protection 13 | . 9 11 . 14 18 8 14 Energy Gun 2 | . 13 11 . . . . 6 Energy Cannon 1 | . . . . . . 4 . Ballistic Gun 12 | . 14 11 . . 17 7 10 Launcher 2 | . . 2 14 14 . 5 . Naked Turns . | . . . . . . . . Heaviest Build 108 | 13 21 21 13 16 108 102 102 Greatest Support 42 | 20 20 40 16 16 40 42 40 Greatest Overweight (x) 5 | . 1 . . . 5 4 2 Average Overweight (x) 1 | . . . . . 1 2 2 Largest Inventory Capacity 25 | 8 10 10 10 10 25 25 25 Average Capacity 21 | 8 9 10 10 10 22 25 25 Most Carried 25 | 5 10 10 10 8 25 25 25 Average Carried 18 | 4 8 9 9 8 20 19 21 Final Capacity 25 | 8 10 10 10 10 25 25 25 Final Carried 25 | 4 9 7 9 8 24 18 25 Class Distribution -------------------- 71% | Mutant 28% | Scavenger-Mutant Dominant Class ---------------- Mutant | -10/Materials Mutant | -10/Mines Mutant | -10/Exiles Mutant | -9/Mines Mutant | -8/Materials Scavenger-Mutant | -8/Garrison Scavenger-Mutant | -8/Materials Resources | -11 -10 -10 -10 -9 -8 -8 -8 ----------- Run | Jun Mat Min Exi Min Mat Gar Mat Matter Collected 3172 | 200 282 95 . . 1525 522 548 Remotely . | . . . . . . . . Salvage Created 3617 | . 436 137 . . 1844 617 583 Parts 198 | . 14 9 . . 107 40 28 Haulers Intercepted 8 | . 2 . . . 6 . . Recyclers Shooed 8 | . . . . . 7 . 1 Parts Field Recycled . | . . . . . . . . Retrieved Matter . | . . . . . . . . Parts Self-Destructed . | . . . . . . . . Prevented . | . . . . . . . . Kills | -11 -10 -10 -10 -9 -8 -8 -8 ------- Run | Jun Mat Min Exi Min Mat Gar Mat Combat Hostiles Destroyed 69 | . 8 2 . . 29 22 8 Guns 46 | . 5 . . . 26 7 8 Cannons 1 | . . . . . . 1 . AOE 22 | . 3 2 . . 3 14 . Classes Destroyed 12 | . 4 . . . 6 1 1 Worker 3 | . . . . . 3 . . Builder 2 | . . . . . 1 . 1 Tunneler 1 | . . . . . 1 . . Hauler 8 | . 2 . . . 6 . . Recycler 8 | . 1 1 . . 5 . 1 Watcher 5 | . . . . . 5 . . Swarmer 21 | . 3 . . . 11 7 . Grunt 26 | . 5 2 . . 8 9 2 Brawler 1 | . . . . . . 1 . Duelist 1 | . . . . . . . 1 Sentry 14 | . . . . . 8 3 3 Hunter 6 | . . . . . 2 2 2 Best Kill Streak 8 | . 3 2 . . 8 5 4 Combat Bots Only 7 | . 3 2 . . 7 5 3 Max Kills in Single Turn 4 | . 2 2 . . 2 4 1 Gunslinging 1 | . . . . . 1 . . Exploded 4 | . 2 2 . . 1 4 . Melee . | . . . . . . . . Uniques/NPCs Destroyed . | . . . . . . . . Combat | -11 -10 -10 -10 -9 -8 -8 -8 -------- Run | Jun Mat Min Exi Min Mat Gar Mat Damage Taken 5266 | . 336 843 . . 1246 2070 771 Core 723 | . . 163 . . 103 322 135 Absorbed by Shields . | . . . . . . . . Core Remaining (%) 67 | 100 . . . 34 . . . Volleys Fired 268 | . 40 7 1 . 118 62 40 Largest 2 | . 2 1 1 . 2 2 2 Hottest 91 | . 70 50 30 . 91 88 90 Shots Fired 469 | . 78 7 1 . 224 79 80 Gun 417 | . 76 3 . . 216 42 80 Cannon 17 | . . . . . 5 12 . Launcher 35 | . 2 4 1 . 3 25 . Special . | . . . . . . . . Kinetic 345 | . 38 . . . 216 42 49 Thermal 72 | . 38 3 . . . . 31 Explosive 35 | . 2 4 1 . 3 25 . Electromagnetic 17 | . . . . . 5 12 . Robot Hit Streak 21 | . 19 3 . . 8 16 21 Robot Miss Streak 9 | . 2 2 . . 9 2 3 Penetration Max . | . . . . . . . . Secondary Targets 3 | . . . . . 3 . . Max Gunslinging Chain 1 | . . . . . 1 . . Shots Hit Robots 331 | . 52 5 . . 161 55 58 Core Hits 218 | . 23 7 . . 125 42 21 Critical Kills . | . . . . . . . . Critical Parts Destroyed 2 | . . . . . . 1 1 Critical Strikes 8 | . 5 . . . . 1 2 Burn 6 | . 5 . . . . . 1 Destroy 2 | . . . . . . 1 1 Melee Attacks . | . . . . . . . . Impact . | . . . . . . . . Slashing . | . . . . . . . . Piercing . | . . . . . . . . Sneak Attacks . | . . . . . . . . Combat Hostiles . | . . . . . . . . Follow-up Attacks . | . . . . . . . . Damage Inflicted 7170 | . 691 175 . 1 2968 2427 908 Guns 4572 | . 570 12 . . 2571 516 903 Cannons 346 | . . . . . 110 236 . Explosions 2214 | . 113 163 . . 264 1674 . Melee . | . . . . . . . . Ramming 38 | . 8 . . 1 23 1 5 Kinetic 3751 | . 192 . . . 2571 516 472 Thermal 821 | . 378 12 . . . . 431 Explosive 2214 | . 113 163 . . 264 1674 . Electromagnetic 346 | . . . . . 110 236 . Impact . | . . . . . . . . Slashing . | . . . . . . . . Piercing . | . . . . . . . . Highest Corruption 1 | . . . . . 1 1 1 Average Corruption 1 | . . . . . 1 1 1 Corruption Purged . | . . . . . . . . Corruption Blocked . | . . . . . . . . Effects 31 | . . . . . 16 9 6 Message Errors 7 | . . . . . 5 2 . Matter Fused 10 | . . . . . 4 3 3 Heat Flow Errors 2 | . . . . . . 1 1 Energy Discharges 6 | . . . . . 3 2 1 Data Loss (minor) 2 | . . . . . 2 . . Data Loss (major) 3 | . . . . . 2 . 1 Misfires 1 | . . . . . . 1 . Overload Shots . | . . . . . . . . Overflow Damage 58 | . 16 . . . . 42 . Projectiles . | . . . . . . . . Explosions 58 | . 16 . . . . 42 . Melee . | . . . . . . . . Knockbacks 1 | . . . . . 1 . . Impact 1 | . . . . . 1 . . Kinetic . | . . . . . . . . Secondary . | . . . . . . . . Self-Inflicted Damage 447 | . 56 74 . . . 317 . Shots 17 | . 2 2 . . . 13 . Rammed 3 | . . . . 1 . 1 1 Targets Rammed 6 | . 2 . . 1 1 1 1 Kicked 3 | . 2 . . . 1 . . Crushed . | . . . . . . . . Highest Temperature 473 | . 238 18 . . 348 264 473 Average Temperature 103 | . 108 10 . . 81 56 163 Received Heat Transfer 1245 | . 138 9 . . 333 549 216 Effects 4 | . 1 . . . 1 . 2 Energy Bleed 1 | . 1 . . . . . . Interference 1 | . . . . . 1 . . Short Circuit 1 | . . . . . . . 1 Damage (minor) 1 | . . . . . . . 1 Siege Activations . | . . . . . . . . Robots Corrupted . | . . . . . . . . Combat Hostiles . | . . . . . . . . Parts Fried 1 | . . . . . 1 . . Impact Corruptions . | . . . . . . . . Robots Melted . | . . . . . . . . Combat Hostiles . | . . . . . . . . Parts Melted 5 | . 3 . . . . . 2 Heat Transferred 2627 | . 1480 37 . . . . 1110 Parts Sabotaged . | . . . . . . . . Parts Stolen . | . . . . . . . . Parts Stripped . | . . . . . . . . Power Chain Reactions . | . . . . . . . . Missiles Intercepted . | . . . . . . . . Alert | -11 -10 -10 -10 -9 -8 -8 -8 ------- Run | Jun Mat Min Exi Min Mat Gar Mat Peak Influence 832 | . 273 109 . . 335 832 561 Initial 405 | . . 30 . . . 182 405 Average 274 | . 114 89 . . 160 475 415 Maximum Alert Level 3 | . 1 . . . 1 3 2 Low Security (%) 41 | 100 75 100 . 100 59 14 . Level 1 31 | . 24 . . . 40 19 34 Level 2 22 | . . . . . . 46 65 Level 3 5 | . . . . . . 19 . Level 4 . | . . . . . . . . Level 5 . | . . . . . . . . High Security . | . . . . . . . . Max Security . | . . . . . . . . Squads Dispatched 8 | . 3 . . . 4 . 1 Investigation 2 | . . . . . 2 . . Extermination . | . . . . . . . . Reinforcement 5 | . 3 . . . 1 . 1 Assault . | . . . . . . . . Garrison 1 | . . . . . 1 . . Intercept . | . . . . . . . . Searches Triggered . | . . . . . . . . Construction Impeded . | . . . . . . . . Haulers Reinforced . | . . . . . . . . Active Scanning Responses . | . . . . . . . . Cargo Convoy Interrupts . | . . . . . . . . Stealth | -11 -10 -10 -10 -9 -8 -8 -8 --------- Run | Jun Mat Min Exi Min Mat Gar Mat Distress Signals 4 | . . . . . 4 . . Communications Jammed . | . . . . . . . . Distress Signals . | . . . . . . . . Times Spotted 112 | . 17 4 . . 48 26 17 Peak Tracking Total 9 | . 4 2 9 . 8 7 4 Tactical Retreats 6 | . . . . . 2 4 . Traps | -11 -10 -10 -10 -9 -8 -8 -8 ------- Run | Jun Mat Min Exi Min Mat Gar Mat Traps Triggered 6 | . . . . . . 6 . Indirectly . | . . . . . . . . Trap Hack Attempts . | . . . . . . . . Triggered . | . . . . . . . . Disarmed . | . . . . . . . . Reprogrammed . | . . . . . . . . Reused . | . . . . . . . . Traps Extracted . | . . . . . . . . Installed . | . . . . . . . . Triggered . | . . . . . . . . Machines | -11 -10 -10 -10 -9 -8 -8 -8 ---------- Run | Jun Mat Min Exi Min Mat Gar Mat Machines Disabled 1 | . . . 1 . . . . Max in Single Turn 1 | . . . 1 . . . . Garrison Access 1 | . . . . . . . 1 Machines Repaired . | . . . . . . . . Machines Sabotaged . | . . . . . . . . Overloaded Fab Kills . | . . . . . . . . Hacking | -11 -10 -10 -10 -9 -8 -8 -8 --------- Run | Jun Mat Min Exi Min Mat Gar Mat Machines Accessed 19 | . . 1 2 . 11 3 2 Terminals 14 | . . 1 . . 9 3 1 Fabricators . | . . . . . . . . Repair Stations . | . . . . . . . . Recycling Units 1 | . . . . . 1 . . Scanalyzers . | . . . . . . . . Garrison Access 2 | . . . . . 1 . 1 Total Hacks 49 | . . 4 2 . 33 5 5 Successful 22 | . . 2 2 . 15 2 1 Failed 27 | . . 2 . . 18 3 4 Catastrophic 7 | . . . . . 3 1 3 Database Lockouts . | . . . . . . . . Manual 34 | . . 4 1 . 26 . 3 Terminals 42 | . . 4 . . 30 5 3 Fabricators . | . . . . . . . . Repair Stations . | . . . . . . . . Recycling Units 1 | . . . . . 1 . . Scanalyzers . | . . . . . . . . Garrison Access 4 | . . . . . 2 . 2 Terminal Hacks 15 | . . 2 2 . 9 2 . Record 1 | . . . 1 . . . . Robot Analysis 2 | . . 2 . . . . . Branch Access Points 1 | . . . . . 1 . . Terminal Index 1 | . . . . . 1 . . Alert Level 1 | . . . . . 1 . . Unreport Threat 2 | . . . . . 2 . . Locate Traps 1 | . . . . . 1 . . Zone Layout 3 | . . . . . 3 . . Garrison Registry 1 | . . . . . . 1 . Security Stations 1 | . . . . . . 1 . EX-Prototype ID Bank 1 | . . . 1 . . . . Fabricator Hacks . | . . . . . . . . Repair Station Hacks . | . . . . . . . . Recycling Unit Hacks . | . . . . . . . . Scanalyzer . | . . . . . . . . Garrison Access Hacks 2 | . . . . . 1 . 1 Unlock Access 1 | . . . . . 1 . . Seal Access 1 | . . . . . . . 1 Unauthorized Hacks 5 | . . . . . 5 . . Terminals 4 | . . . . . 4 . . Track 1 | . . . . . 1 . . Botnet 3 | . . . . . 3 . . Fabricators . | . . . . . . . . Repair Stations . | . . . . . . . . Recycling Units 1 | . . . . . 1 . . Tunnel 1 | . . . . . 1 . . Scanalyzers . | . . . . . . . . Garrison Access . | . . . . . . . . Data Cores Recovered . | . . . . . . . . Used . | . . . . . . . . Hacking Detections 14 | . . 1 . . 9 2 2 Full Trace Events 3 | . . . . . 2 . 1 Feedback Events 1 | . . . . . 1 . . Corruption 1 | . . . . . 1 . . Feedback Blocked . | . . . . . . . . Robot Schematics Acquired . | . . . . . . . . Robots Built . | . . . . . . . . Authchips . | . . . . . . . . Time . | . . . . . . . . Total Robot Build Rating . | . . . . . . . . Part Schematics Acquired . | . . . . . . . . Parts Built . | . . . . . . . . Authchips . | . . . . . . . . Time . | . . . . . . . . Total Part Build Rating . | . . . . . . . . Parts Repaired . | . . . . . . . . Time . | . . . . . . . . Parts Recycled . | . . . . . . . . Recycled Matter . | . . . . . . . . Retrieved Matter . | . . . . . . . . Retrieved Components . | . . . . . . . . Parts Scanalyzed . | . . . . . . . . Part Schematics Acquired . | . . . . . . . . Parts Damaged . | . . . . . . . . Bothacking | -11 -10 -10 -10 -9 -8 -8 -8 ------------ Run | Jun Mat Min Exi Min Mat Gar Mat Used RIF Installer . | . . . . . . . . Robots Hacked . | . . . . . . . . Non-combat . | . . . . . . . . Combat . | . . . . . . . . Robot Hacks Applied . | . . . . . . . . Relay Couplers Released . | . . . . . . . . Fabnet Peak Effective % . | . . . . . . . . Robots Rewired . | . . . . . . . . Allies Hacked . | . . . . . . . . Hacks Repelled . | . . . . . . . . Allies | -11 -10 -10 -10 -9 -8 -8 -8 -------- Run | Jun Mat Min Exi Min Mat Gar Mat Total Allies 3 | . . 3 . . . . . Largest Group 3 | . . 3 . . . . . Highest-Rated Group 40 | . . 40 . . . . . Highest-Rated Ally 16 | . . 16 . . . . . Total Orders . | . . . . . . . . Ally Attacks 3 | . . 3 . . . . . Total Damage 41 | . . 41 . . . . . Kills . | . . . . . . . . Allies Corrupted . | . . . . . . . . Allies Melted . | . . . . . . . . Intel | -11 -10 -10 -10 -9 -8 -8 -8 ------- Run | Jun Mat Min Exi Min Mat Gar Mat Robot Analysis Total 2 | . . 2 . . . . . Derelict Logs Recovered . | . . . . . . . . Drone Launches . | . . . . . . . . Drone Recoveries . | . . . . . . . . Exploration | -11 -10 -10 -10 -9 -8 -8 -8 ------------- Run | Jun Mat Min Exi Min Mat Gar Mat Turns Passed 6005 | 5 431 266 255 20 2648 1488 892 Spaces Moved 2189 | 3 175 156 250 15 947 413 230 Core 1 | . . . . . 1 . . Treads 728 | . 6 145 . . . 347 230 Legs 1176 | 3 169 . . . 938 66 . Wheels 284 | . . 11 250 15 8 . . Hover . | . . . . . . . . Flight . | . . . . . . . . Fastest Speed 100 | 120 120 100 100 100 100 270 320 Average Speed 231 | 120 159 155 100 100 235 316 320 Slowest Speed 480 | 120 240 160 100 100 300 480 320 Overloaded Moves . | . . . . . . . . Propulsion Burnouts . | . . . . . . . . Robots Hopped . | . . . . . . . . Cave-ins Triggered . | . . . . . . . . Time Travels 1 | . . . 1 . . . . Exploration Rate (%) 38 | 2 31 44 60 8 75 62 24 Regions Visited 7 Branch Regions 3 Pre-discovered Areas 2 | . . . 1 . 1 . . Known Exits Taken 1 | . . . . . 1 . . Unknown Exits Taken 5 | 1 1 1 1 1 . . . Scrap Searched . | . . . . . . . . Spaces Dug . | . . . . . . . . Terrain Destroyed 150 | . 11 19 4 . 24 92 . Melee . | . . . . . . . . Projectile . | . . . . . . . . AOE 150 | . 11 19 4 . 24 92 . Terrain Rammed . | . . . . . . . . Walls Destroyed . | . . . . . . . . Machines Disabled . | . . . . . . . . Actions | -11 -10 -10 -10 -9 -8 -8 -8 --------- Run | Jun Mat Min Exi Min Mat Gar Mat Total 2739 | 5 257 170 254 20 1186 526 321 Wait 89 | . 16 . . 4 27 8 34 Move 2183 | 2 174 155 249 14 947 412 230 Hop . | . . . . . . . . Pick Up 51 | . 10 . 3 . 24 6 8 Fast Attach 26 | . 3 2 . . 17 3 1 Attach 21 | . 1 3 . 1 2 11 3 Detach 9 | . 1 1 . . 7 . . Swap 41 | 1 3 2 . . 22 9 4 Drop 32 | 2 7 . 1 . 21 1 . Fire 268 | . 40 7 1 . 118 62 40 Melee . | . . . . . . . . Ram 1 | . . . . 1 . . . Kick 3 | . 2 . . . 1 . . Crush 2 | . . . . . . 1 1 Escape Stasis 13 | . . . . . . 13 . Rewire . | . . . . . . . . Trap . | . . . . . . . . Miscellaneous . | . . . . . . . . Route ------- -11/Junkyard -10/Materials -10/Mines (discovered 3 exits: [*Mat x2] / *Exi) -10/Exiles -9/Mines -8/Materials (discovered 3 exits: [*Fac x2] / Gar) -8/Garrison (discovered 3 exits: *Mat x3) -8/Materials History --------- Turn | Location | Event 2 | -11/Junkyard | Discovered new exit (range 2) 6 | -11/Junkyard | Entered Materials 158 | -10/Materials | Discovered new exit (range 8) 322 | -10/Materials | Build established: Mutant 437 | -10/Materials | Entered Mines 445 | -10/Mines | Met a Derelict bent on vengeance 542 | -10/Mines | Discovered new exit (range 5) 590 | -10/Mines | Assisted by bots powering up and referring to "LRC-V3" 614 | -10/Mines | Discovered new exit (range 13) 655 | -10/Mines | Assembled infested the area 676 | -10/Mines | Core integrity fell below 50% 699 | -10/Mines | Discovered new exit (range 5) 703 | -10/Mines | Entered Exiles 707 | -10/Exiles | Lost 7 parts (1p2n2u2w) 731 | -10/Exiles | Met 8R-AWN 747 | -10/Exiles | Met EX-HEX 775 | -10/Exiles | Met EX-BIN 795 | -10/Exiles | Learned location of Zion (-7) 797 | -10/Exiles | Met EX-DEC 825 | -10/Exiles | Aligned with FarCom system 826 | -10/Exiles | Given EX-Vault access code 852 | -10/Exiles | Opened EX-Vault 860 | -10/Exiles | Found Chronowheel 860 | -10/Exiles | Activated Chronowheel 860 | -10/Exiles | Spacetime reconverged on an earlier point 881 | -10/Exiles | Warned to stay clear of 0b10 Research branches 938 | -10/Exiles | Attacked by the Exiles 950 | -10/Exiles | Discovered new exit (range 10) 958 | -10/Exiles | Entered Mines 972 | -9/Mines | Discovered new exit (range 5) 978 | -9/Mines | Entered Materials 978 | -8/Materials | Evolved 4 slots: Utility x4 1162 | -8/Materials | Destroyed 7 combat bots 1789 | -8/Materials | Discovered new exit (range 19) 2134 | -8/Materials | Discovered new exit (range 13) 2747 | -8/Materials | Garrison activated, responded to threat 3625 | -8/Materials | Identified exit to Garrison 3626 | -8/Materials | Entered Garrison 3770 | -8/Garrison | Triggered checkpoint 3876 | -8/Garrison | Lost 6 parts (1p2n1u2w) 4042 | -8/Garrison | Triggered checkpoint 4068 | -8/Garrison | Core integrity fell below 50% 4116 | -8/Garrison | Triggered checkpoint 4142 | -8/Garrison | Lost 3 parts (1n1u1w) 4250 | -8/Garrison | Triggered checkpoint 4392 | -8/Garrison | Build established: Scavenger-Mutant 4400 | -8/Garrison | Discovered new exit (range 68) 4400 | -8/Garrison | Discovered new exit (range 48) 4400 | -8/Garrison | Discovered new exit (range 22) 4694 | -8/Garrison | Lost 3 parts (1p1n1w) 5047 | -8/Garrison | Learned Materials security intel 5114 | -8/Garrison | Entered Materials 5363 | -8/Materials | Core integrity fell below 20% 5417 | -8/Materials | Lost 3 parts (2u1w) 6006 | -8/Materials | Destroyed by G-47 Trooper with Particle Gun Last Messages --------------- 05849_ R-06 Scavenger inserts Terrain Scanner into recycling unit. 05852_ R-06 Scavenger inserts Wheel into recycling unit. 05858_ System corrupted: Energy discharge (-53). 05912_ System corrupted: Heat flow error (+203). 05925_ L-31 Rogue destroyed. 05939_ Lgt. Deuterium Engine broken. 05939_ Overheating: Short circuit. 05940_ Critical hit (Burn: +37). 05940_ Particle Gun melted. 05940_ G-47 Trooper destroyed. 05946_ Acquired 60 matter. 05946_ R-06 Scavenger collects Aluminum Leg. 05949_ Overheating: Huge Storage Unit damaged (-279). 05949_ R-06 Scavenger inserts Aluminum Leg into recycling unit. 05950_ Recycling unit begins recycling process. 05950_ O-16 Technician: "IFF HANDSHAKE FAILED. SECURING TERMINAL." 05953_ R-06 Scavenger collects Core Shielding. 05955_ ALERT: Hostiles spotted, dispatching reinforcements to Terminal M005. 05957_ R-06 Scavenger collects Katana. Map ----- +----------------------------------------------------+ | ????????????????????????????????? | | ????????????????????????????????? | | ????????????????????????????????? | | ????????????????????????????????? | | ????????????????????????????????? | | ????????????????????????????????? | | ????????????????????????????????? | | ????????????????????????????????? | | ????????????????????????????????? | | ????????????????????????????????? | | ????????????????????????????????? | | ????????????????????????????????? | | ????????????????????????????????? | | ????????????????????????????????? | | ????###+##########??????????????? | | ????# # #?????????????? | | ????# [ # """"" #?????????????? | | ????# # """"" #?????????????? | | ????# # """""??????? ? ????? | | ????# # ???????? T ??? | | ####### ####+######### ??? | | #= # """ "?? | | # # "Y" ?? | | # + % =/[ ?? | | # " " # /[[ #??????? | | # "G" # @ g /[ #??????? | | # """ + #### #??????? | | # # #??# #??????? | | ####### #??# #??????? | | ??????# #??# """ """ #??????? | | ??????# #??# """ """ #??????? | | ??????# #??# """ """ ###????? | | ??????# #??# ?????? | | ??????# #??# ##?????? | | ??????# #??# """ #??????? | | ????###+#### """ #??????? | | ????# # """ #??????? | | ????# # ! !######## | | ????# + !! = ! | | ????# # #################### | | ????# # #??????????# | | ????# # #??????????# | | ????######## #??????????# | | ???????????# #??????????# | | ???????????# ??????????# ]* | | ???????????# ??????????# ]% | | ???????????? ??????????# | | ???????????? ??????????# | | ???????????? ??????????######### | | ???????????? ??????????????????? | +----------------------------------------------------+ Best States ------------- Heat Dissipation 45 Energy Generation 14 Energy Capacity 250 Matter Stores 300 Matter Capacity 300 Sight Range 16 Terrain Scan Density 10 Armor Coverage 750 Evasion (%) 55 Targeting Accuracy 8 Recoil Reduction 2 Salvage Targeting 3 Item Schematics ----------------- None Robot Schematics ------------------ None Fabricated ------------ Nothing Alien Tech Used ----------------- None Achievements -------------- None Challenges ------------ None Game ------ Seed SensorGrapheneDerivative Manual? 0 Play Time 00:32:49 Cumulative 186.6 hours Start 2023.02.08 @ 06:33:47 End 2023.02.08 @ 09:01:01 Sessions 2 Manual Loads 0 Difficulty Rogue Special Mode None Game No. 269 Rogue 269 Adventurer 0 Explorer 0 Win Type - Total 7 Types 6/0/0/1/0/0/0/0/0 Lore% 80 Gallery% 82 Achievement% 67 Wizard Run 0 Options --------- ASCII 0 Keyboard 0 Movement Numpad Keybinds 0 Fullscreen 2 Font 18/SmallcapsGlow Map View 76x50 Tactical HUD 1 Map Filters NONE Filters NONE Steam 1 RUN: 15472339-643b-4de9-8afd-d69d8c319f2e